[Event "Wuerttemberg Rapid Teams 2024"]
[Site "B?blingen, Germany"]
[Date "2024.04.13"]
[Round "3.17"]
[White "Peng, Xiang-Tobias"]
[Black "Braeuning, Rudolf Wilhelm"]
[Result "1/2-1/2"]
[ECO "C47"]
[WhiteElo "2187"]
[BlackElo "2194"]
[Annotator "RC"]
[PlyCount "109"]
[EventDate "2024.04.13"]
[EventType "team-tourn"]
[SourceTitle "playchess.com"]
[Source "ChessBase"]
[SourceQuality "1"]
[TimeControl "900+5"]

1. e4 e5 2. Nf3 Nc6 3. d4 exd4 4. Nxd4 Nf6 5. Nc3 Bb4 6. Nxc6 bxc6 7. Bd3 d5 {[%emt 0:00:35]} 8. exd5 {[%emt 0:00:40]} O-O {[%emt 0:00:00]} 9. O-O cxd5 {[%emt 0:00:00]} 10. Bg5 {[%emt 0:00:13]} c6 {[%emt 0:00:06]} 11. Na4 {[%emt 0:00:36]} Qd6 {[%emt 0:01:18]} 12. Bh4 {[%emt 0:01:01]} Bg4 {[%emt 0:00:15]} 13. f3 {[%emt 0:00:12]} Bh5 {[%emt 0:00:05]} 14. c4 {[%emt 0:00:52]} Bg6 {[%emt 0:00:17]} 15. Bf2 {[%emt 0:01:39]} Rfd8 {[%emt 0:01:02]} 16. Bxg6 {[%emt 0:00:59]} hxg6 {[%emt 0:00:01]} 17. a3 {[%emt 0:01:26]} Ba5 {[%emt 0:00:02]} 18. b4 {[%emt 0:00:44]} Bc7 {[%emt 0:00:01]} 19. Bg3 {[%emt 0:00:04]} Qd7 {[%emt 0:00:01]} 20. Bxc7 {[%emt 0:01:59]} Qxc7 {[%emt 0:00:00]} 21. Qd4 {[%emt 0:00:49]} a5 {[%emt 0:00:41]} 22. b5 {[%emt 0:01:13]} c5 {[%emt 0:01:56]} 23. Qxc5 {[%emt 0:00:16]} Qxc5+ {[%emt 0:00:06]} 24. Nxc5 {[%emt 0:00:01]} dxc4 {[%emt 0:00:33]} 25. Rfc1 {[%emt 0:00:36]} Rac8 {[%emt 0:01:28]} 26. Rxc4 {[%emt 0:01:20]} Nd7 {[%emt 0:00:01]} 27. Rac1 {[%emt 0:01:08]} Nb6 {[%emt 0:00:01]} 28. R4c2 {[%emt 0:00:03]} Rd5 {[%emt 0:00:47]} 29. a4 {[%emt 0:00:19]} f5 {[%emt 0:00:36]} 30. Ne6 {[%emt 0:00:35]} Rxc2 {[%emt 0:00:16]} 31. Rxc2 {[%emt 0:00:00]} Nxa4 {[%emt 0:00:11]} 32. Ra2 {[%emt 0:00:38]} Nc3 {[%emt 0:00:28]} 33. Rxa5 {[%emt 0:00:03]} Rxb5 {[%emt 0:00:44]} 34. Ra7 {[%emt 0:00:00]} Rb1+ {[%emt 0:00:06]} 35. Kf2 {[%emt 0:00:00]} Rb2+ {[%emt 0:00:01]} 36. Kg3 {[%emt 0:00:00]} Kh7 {[%emt 0:00:25]} 37. Rxg7+ {[%emt 0:00:01]} Kh6 {[%emt 0:00:01]} 38. Rg8 {[%emt 0:00:12]} Kh7 {[%emt 0:00:15]} 39. Rg7+ {[%emt 0:00:13]} Kh6 {[%emt 0:00:01]} 40. Rg8 {[%emt 0:00:01]} Kh7 {[%emt 0:00:02]} 41. Rg7+ {[%emt 0:00:18]} Kh6 {[%emt 0:00:01]} 42. Rg8 {[%emt 0:00:02]} Kh7 {[%emt 0:00:00]} 43. Rg7+ {[%emt 0:00:03]} Kh6 {[%emt 0:00:01]} 44. Rg8 {[%emt 0:00:01]} Kh7 {[%emt 0:00:02]} 45. Rg7+ {[%emt 0:00:02]} Kh6 {[%emt 0:00:00]} 46. Rg8 {[%emt 0:00:02]} Kh7 {[%emt 0:00:02]} 47. Rg7+ {[%emt 0:00:01]} Kh6 {[%emt 0:00:01]} 48. Rg8 {[%emt 0:00:02]} Kh7 {[%emt 0:00:04]} 49. Rc8 {[%emt 0:00:03]} Ne2+ {[%emt 0:00:01]} 50. Kh4 {[%emt 0:00:11]} Ng1 {[%emt 0:00:03]} 51. Kg5 {[%emt 0:00:16]} Rxg2+ {[%emt 0:00:02]} 52. Kf6 Nxf3 {[%emt 0:00:18]} 53. Rc3 Nh4 {[%emt 0:00:08]} 54. Rh3 Rg4 55. Ke5 {[%emt 0:00:14]} 1/2-1/2

[Event "Wuerttemberg Rapid Teams 2024"]
[Site "B?blingen, Germany"]
[Date "2024.04.13"]
[Round "3.17"]
[White "Peng, Xiang-Tobias"]
[Black "Braeuning, Rudolf Wilhelm"]
[Result "*"]
[ECO "A06"]
[WhiteElo "2187"]
[BlackElo "2194"]
[Annotator "RC"]
[PlyCount "75"]
[EventDate "2024.04.13"]
[EventType "team-tourn"]
[SourceTitle "playchess.com"]
[Source "ChessBase"]
[SourceQuality "1"]
[TimeControl "900+5"]

1. Nf3 {[%emt 0:00:02]} c5 {[%emt 0:00:01]} 2. b3 {[%emt 0:00:03]} Nc6 {[%emt 0:00:04]} 3. Bb2 {[%emt 0:00:01]} d5 {[%emt 0:00:29]} 4. e3 {[%emt 0:00:02]} Bg4 {[%emt 0:00:40]} 5. Bb5 {[%emt 0:00:17]} Rc8 {[%emt 0:01:21]} 6. h3 {[%emt 0:00:02]} Bxf3 {[%emt 0:00:09]} 7. Qxf3 {[%emt 0:00:01]} a6 {[%emt 0:00:27]} 8. Bxc6+ {[%emt 0:00:19]} Rxc6 {[%emt 0:00:01]} 9. O-O {[%emt 0:00:11]} Nf6 {[%emt 0:00:31]} 10. d3 {[%emt 0:00:06]} Qd6 {[%emt 0:00:47]} 11. Nd2 {[%emt 0:00:21]} e5 {[%emt 0:01:27]} 12. Qg3 {[%emt 0:01:09]} Nd7 {[%emt 0:03:09]} 13. Rae1 {[%emt 0:02:05]} f5 {[%emt 0:01:06]} 14. f4 {[%emt 0:01:33]} exf4 {[%emt 0:01:04]} 15. exf4+ {[%emt 0:00:09]} Kf7 {[%emt 0:00:06]} 16. Nf3 {[%emt 0:00:18]} Qg6 {[%emt 0:00:19]} 17. Qh4 {[%emt 0:03:35]} d4 {[%emt 0:00:51]} 18. Qd8 {[%emt 0:00:47]} Rd6 {[%emt 0:00:43]} 19. Qc7 {[%emt 0:01:54]} Be7 {[%emt 0:00:45]} 20. Rxe7+ {[%emt 0:00:55]} Kxe7 {[%emt 0:00:11]} 21. Re1+ {[%emt 0:00:00]} Re6 {[%emt 0:01:00]} 22. Ne5 {[%emt 0:01:21]} Qe8 {[%emt 0:00:01]} 23. Qxb7 {[%emt 0:00:02]} Qc8 {[%emt 0:01:02]} 24. Qd5 {[%emt 0:00:35]} Nxe5 {[%emt 0:00:21]} 25. fxe5 {[%emt 0:00:09]} Qc6 {[%emt 0:00:06]} 26. Qc4 {[%emt 0:00:07]} Rc8 {[%emt 0:00:14]} 27. Re2 {[%emt 0:00:52]} Kf8 {[%emt 0:00:01]} 28. c3 {[%emt 0:00:07]} dxc3 {[%emt 0:00:15]} 29. Bxc3 {[%emt 0:00:01]} Kg8 {[%emt 0:00:04]} 30. Qf4 {[%emt 0:00:11]} Rce8 {[%emt 0:00:12]} 31. Re3 {[%emt 0:00:01]} Qd5 {[%emt 0:00:01]} 32. Qxf5 {[%emt 0:00:10]} h6 {[%emt 0:00:00]} 33. Rf3 {[%emt 0:00:15]} a5 {[%emt 0:00:05]} 34. Qf7+ {[%emt 0:00:00]} Kh8 {[%emt 0:00:01]} 35. Rg3 {[%emt 0:00:01]} Rg8 {[%emt 0:00:04]} 36. Rg6 {[%emt 0:00:04]} Rxe5 {[%emt 0:00:06]} 37. Qxd5 {[%emt 0:00:02]} Rxd5 {[%emt 0:00:01]} 38. Rxh6# {[%emt 0:00:01]} *

[Event "Wuerttemberg Rapid Teams 2024"]
[Site "B?blingen, Germany"]
[Date "2024.04.13"]
[Round "3.18"]
[White "Ramirez Marin, Ivan"]
[Black "Hartmann, Martin"]
[Result "0-1"]
[ECO "A29"]
[WhiteElo "2271"]
[BlackElo "2158"]
[Annotator "RC"]
[PlyCount "146"]
[EventDate "2024.04.13"]
[EventType "team-tourn"]
[SourceTitle "playchess.com"]
[Source "ChessBase"]
[SourceQuality "1"]
[TimeControl "900+5"]

1. c4 {[%emt 0:00:01]} e5 {[%emt 0:00:01]} 2. g3 {[%emt 0:00:05]} Nf6 {[%emt 0:00:02]} 3. Bg2 {[%emt 0:00:01]} Nc6 {[%emt 0:00:01]} 4. Nc3 {[%emt 0:00:03]} Bc5 {[%emt 0:00:02]} 5. Nf3 {[%emt 0:00:25]} d6 {[%emt 0:00:03]} 6. e3 {[%emt 0:00:03]} a6 {[%emt 0:00:04]} 7. O-O {[%emt 0:00:10]} O-O {[%emt 0:00:02]} 8. b3 {[%emt 0:00:02]} Ba7 {[%emt 0:00:03]} 9. Bb2 {[%emt 0:00:11]} Re8 {[%emt 0:00:02]} 10. h3 {[%emt 0:00:21]} e4 {[%emt 0:00:29]} 11. Ng5 {[%emt 0:01:14]} Bf5 {[%emt 0:00:08]} 12. g4 {[%emt 0:00:23]} Bg6 {[%emt 0:00:02]} 13. f4 {[%emt 0:00:40]} exf3 {[%emt 0:00:31]} 14. Nxf3 {[%emt 0:00:30]} Nb4 {[%emt 0:00:25]} 15. Nh4 {[%emt 0:01:25]} Bc2 {[%emt 0:00:34]} 16. Qf3 {[%emt 0:01:35]} Qe7 {[%emt 0:02:19]} 17. Rac1 {[%emt 0:00:41]} Bd3 {[%emt 0:01:22]} 18. Qxb7 {[%emt 0:01:45]} Nxg4 {[%emt 0:01:57]} 19. Nd5 {[%emt 0:03:44]} Nxd5 {[%emt 0:02:09]} 20. Qxd5 {[%emt 0:00:01]} Bxf1 {[%emt 0:01:13]} 21. Nf5 {[%emt 0:00:48]} Qe6 {[%emt 0:00:43]} 22. Rxf1 {[%emt 0:00:19]} Ne5 {[%emt 0:01:48]} 23. Bxe5 {[%emt 0:01:37]} Qxd5 {[%emt 0:00:32]} 24. Bxd5 {[%emt 0:00:09]} dxe5 {[%emt 0:00:01]} 25. Bxa8 {[%emt 0:00:08]} Rxa8 {[%emt 0:00:01]} 26. Ne7+ {[%emt 0:00:09]} Kf8 {[%emt 0:00:01]} 27. Nc6 {[%emt 0:00:01]} f6 {[%emt 0:00:54]} 28. Nxe5 {[%emt 0:00:04]} Re8 {[%emt 0:00:24]} 29. Nc6 {[%emt 0:00:03]} Bb6 {[%emt 0:00:01]} 30. Rf5 {[%emt 0:00:20]} Re6 {[%emt 0:00:10]} 31. Nb4 {[%emt 0:00:06]} g6 {[%emt 0:00:20]} 32. Rd5 {[%emt 0:00:16]} a5 {[%emt 0:00:01]} 33. Nc2 {[%emt 0:00:06]} Ke8 {[%emt 0:01:00]} 34. Kf2 {[%emt 0:00:15]} c6 {[%emt 0:00:02]} 35. Rd3 {[%emt 0:00:03]} Ke7 {[%emt 0:00:08]} 36. Rc3 {[%emt 0:00:06]} Re5 {[%emt 0:00:04]} 37. d4 {[%emt 0:00:03]} Rf5+ {[%emt 0:00:02]} 38. Ke2 {[%emt 0:00:01]} Rh5 {[%emt 0:00:00]} 39. e4 {[%emt 0:00:05]} g5 {[%emt 0:00:16]} 40. c5 {[%emt 0:00:04]} Bc7 {[%emt 0:00:01]} 41. d5 {[%emt 0:00:01]} Be5 {[%emt 0:00:07]} 42. d6+ {[%emt 0:00:05]} Kd7 {[%emt 0:00:01]} 43. Rf3 {[%emt 0:00:00]} Rh4 {[%emt 0:00:05]} 44. Kd3 {[%emt 0:00:02]} h5 {[%emt 0:00:01]} 45. Ne3 {[%emt 0:00:06]} g4 {[%emt 0:00:02]} 46. hxg4 {[%emt 0:00:10]} hxg4 {[%emt 0:00:01]} 47. Rf2 {[%emt 0:00:18]} g3 {[%emt 0:00:16]} 48. Rg2 {[%emt 0:00:03]} Rh2 {[%emt 0:00:06]} 49. a3 {[%emt 0:00:14]} Bf4 {[%emt 0:00:06]} 50. Re2 {[%emt 0:00:04]} Rf2 {[%emt 0:00:19]} 51. Rxf2 {[%emt 0:00:04]} gxf2 {[%emt 0:00:01]} 52. Nf1 {[%emt 0:00:02]} Bc1 {[%emt 0:00:03]} 53. b4 {[%emt 0:00:07]} Bxa3 {[%emt 0:00:03]} 54. bxa5 {[%emt 0:00:04]} Bxc5 {[%emt 0:00:00]} 55. Ke2 {[%emt 0:00:08]} Kxd6 {[%emt 0:00:01]} 56. Nd2 {[%emt 0:00:01]} Ba7 {[%emt 0:00:03]} 57. Nc4+ {[%emt 0:00:04]} Kc5 {[%emt 0:00:04]} 58. Ne3 {[%emt 0:00:03]} Kb5 {[%emt 0:00:04]} 59. Ng4 {[%emt 0:00:01]} Bd4 {[%emt 0:00:05]} 60. Nxf2 {[%emt 0:00:19]} Bxf2 {[%emt 0:00:01]} 61. Kxf2 {[%emt 0:00:01]} Kxa5 {[%emt 0:00:01]} 62. Kf3 {[%emt 0:00:01]} c5 {[%emt 0:00:03]} 63. Kf4 {[%emt 0:00:01]} c4 {[%emt 0:00:02]} 64. Kf5 {[%emt 0:00:01]} c3 {[%emt 0:00:01]} 65. Kxf6 {[%emt 0:00:01]} c2 {[%emt 0:00:01]} 66. e5 {[%emt 0:00:01]} c1=Q {[%emt 0:00:01]} 67. e6 {[%emt 0:00:00]} Qf4+ {[%emt 0:00:01]} 68. Kg7 {[%emt 0:00:02]} Qe5+ {[%emt 0:00:02]} 69. Kf7 {[%emt 0:00:01]} Qf5+ {[%emt 0:00:01]} 70. Ke7 {[%emt 0:00:00]} Kb6 {[%emt 0:00:00]} 71. Kd6 {[%emt 0:00:04]} Qd3+ {[%emt 0:00:04]} 72. Ke5 {[%emt 0:00:04]} Kc7 {[%emt 0:00:02]} 73. e7 {[%emt 0:00:01]} Kd7 {[%emt 0:00:00]} 0-1

[Event "Wuerttemberg Rapid Teams 2024"]
[Site "B?blingen, Germany"]
[Date "2024.04.13"]
[Round "3.19"]
[White "Schnepp, Gunnar"]
[Black "Freiherr von Hauff, Christopher"]
[Result "1/2-1/2"]
[ECO "B22"]
[WhiteElo "2233"]
[BlackElo "1960"]
[Annotator "RC"]
[PlyCount "79"]
[EventDate "2024.04.13"]
[EventType "team-tourn"]
[SourceTitle "playchess.com"]
[Source "ChessBase"]
[SourceQuality "1"]
[TimeControl "900+5"]

1. e4 {[%emt 0:00:02]} c5 {[%emt 0:00:02]} 2. Nf3 {[%emt 0:00:02]} e6 {[%emt 0:00:03]} 3. c3 {[%emt 0:00:03]} Nf6 {[%emt 0:00:02]} 4. e5 {[%emt 0:00:02]} Nd5 {[%emt 0:00:02]} 5. d4 {[%emt 0:00:01]} cxd4 {[%emt 0:00:02]} 6. cxd4 {[%emt 0:00:00]} d6 {[%emt 0:00:04]} 7. Bc4 {[%emt 0:00:01]} Be7 {[%emt 0:00:11]} 8. O-O {[%emt 0:00:03]} O-O {[%emt 0:00:11]} 9. Re1 {[%emt 0:00:01]} Nc6 {[%emt 0:00:26]} 10. exd6 {[%emt 0:00:22]} Qxd6 {[%emt 0:00:28]} 11. Nc3 {[%emt 0:00:02]} Nf6 {[%emt 0:02:33]} 12. a3 {[%emt 0:03:11]} Rd8 {[%emt 0:00:08]} 13. Nb5 {[%emt 0:00:02]} Qb8 {[%emt 0:01:35]} 14. g3 {[%emt 0:00:12]} b6 {[%emt 0:06:47]} 15. Bf4 {[%emt 0:01:21]} Qb7 {[%emt 0:00:03]} 16. Nc7 {[%emt 0:01:06]} b5 {[%emt 0:00:02]} 17. Bxb5 {[%emt 0:01:54]} Nd5 {[%emt 0:00:25]} 18. Nxd5 {[%emt 0:00:16]} Rxd5 {[%emt 0:00:08]} 19. Bc4 {[%emt 0:01:28]} Rd8 {[%emt 0:00:02]} 20. b4 {[%emt 0:00:09]} Bf6 {[%emt 0:00:28]} 21. Be5 {[%emt 0:00:57]} Bxe5 {[%emt 0:00:13]} 22. Nxe5 {[%emt 0:00:01]} Nxd4 {[%emt 0:00:20]} 23. Qh5 {[%emt 0:00:51]} f6 {[%emt 0:00:13]} 24. Bd3 {[%emt 0:00:25]} g6 {[%emt 0:00:18]} 25. Qh4 {[%emt 0:00:35]} g5 {[%emt 0:00:51]} 26. Qh6 {[%emt 0:00:25]} Qg7 {[%emt 0:00:14]} 27. Bxh7+ {[%emt 0:00:35]} Kf8 {[%emt 0:00:34]} 28. Ng6+ {[%emt 0:00:32]} Kf7 {[%emt 0:00:02]} 29. Qh5 {[%emt 0:00:08]} Bb7 {[%emt 0:00:11]} 30. Ne5+ {[%emt 0:00:36]} Ke7 {[%emt 0:00:12]} 31. Ng6+ {[%emt 0:00:02]} Kf7 {[%emt 0:00:03]} 32. Nh4+ {[%emt 0:00:16]} Kf8 {[%emt 0:00:07]} 33. Ng6+ {[%emt 0:00:07]} Kf7 {[%emt 0:00:03]} 34. Ne5+ {[%emt 0:00:41]} Ke7 {[%emt 0:00:04]} 35. Ng6+ {[%emt 0:01:13]} Kd6 {[%emt 0:00:01]} 36. Rad1 Kc7 {[%emt 0:00:06]} 37. Ra1 {[%emt 0:00:08]} Kd6 38. Red1 Kc7 {[%emt 0:00:03]} 39. Rac1+ Kb6 {[%emt 0:00:38]} 40. Re1 {[%emt 0:00:07]} 1/2-1/2

[Event "Wuerttemberg Rapid Teams 2024"]
[Site "B?blingen, Germany"]
[Date "2024.04.13"]
[Round "3.20"]
[White "Geshnizjani, Ramin"]
[Black "Deubel, Silas"]
[Result "1-0"]
[ECO "B22"]
[WhiteElo "2137"]
[BlackElo "1851"]
[Annotator "RC"]
[PlyCount "63"]
[EventDate "2024.04.13"]
[EventType "team-tourn"]
[SourceTitle "playchess.com"]
[Source "ChessBase"]
[SourceQuality "1"]
[TimeControl "900+5"]

1. e4 {[%emt 0:00:02]} c5 {[%emt 0:00:01]} 2. c3 {[%emt 0:00:02]} d5 {[%emt 0:00:02]} 3. exd5 {[%emt 0:00:02]} Qxd5 {[%emt 0:00:02]} 4. Na3 {[%emt 0:00:01]} Nc6 {[%emt 0:01:00]} 5. Nf3 {[%emt 0:00:03]} Bg4 {[%emt 0:00:15]} 6. Be2 {[%emt 0:00:19]} Nf6 {[%emt 0:00:08]} 7. O-O {[%emt 0:00:30]} e5 {[%emt 0:00:51]} 8. d3 {[%emt 0:02:25]} Be7 {[%emt 0:00:25]} 9. Nc4 {[%emt 0:00:22]} Rd8 {[%emt 0:02:07]} 10. Ne3 {[%emt 0:00:19]} Qe6 {[%emt 0:00:01]} 11. Ng5 {[%emt 0:01:03]} Bxe2 {[%emt 0:00:14]} 12. Nxe6 {[%emt 0:00:02]} Bxd1 {[%emt 0:00:15]} 13. Nxd8 {[%emt 0:00:02]} Be2 {[%emt 0:00:54]} 14. Nxc6 {[%emt 0:00:21]} bxc6 {[%emt 0:00:01]} 15. Re1 {[%emt 0:00:34]} Bxd3 {[%emt 0:00:03]} 16. b3 {[%emt 0:01:10]} O-O {[%emt 0:00:07]} 17. Nc4 {[%emt 0:01:11]} e4 {[%emt 0:00:53]} 18. Ne5 {[%emt 0:00:30]} c4 {[%emt 0:00:49]} 19. bxc4 {[%emt 0:00:16]} Bc5 {[%emt 0:01:13]} 20. Be3 {[%emt 0:00:33]} Bd6 {[%emt 0:00:50]} 21. Nxd3 {[%emt 0:01:10]} exd3 {[%emt 0:00:02]} 22. Rad1 {[%emt 0:00:34]} Ng4 {[%emt 0:01:19]} 23. h3 {[%emt 0:00:19]} Ne5 {[%emt 0:00:18]} 24. c5 {[%emt 0:00:40]} Bc7 {[%emt 0:02:56]} 25. Bd4 {[%emt 0:00:19]} f6 {[%emt 0:01:42]} 26. Bxe5 {[%emt 0:00:06]} Bxe5 {[%emt 0:00:02]} 27. Rxd3 {[%emt 0:00:02]} g5 {[%emt 0:00:18]} 28. g3 {[%emt 0:00:15]} Rb8 {[%emt 0:00:20]} 29. Re4 {[%emt 0:00:09]} Rb2 {[%emt 0:00:12]} 30. Rb4 {[%emt 0:01:16]} Rc2 {[%emt 0:00:08]} 31. Rb7 {[%emt 0:00:05]} Rc1+ {[%emt 0:00:03]} 32. Kg2 {[%emt 0:00:02]} 1-0

[Event "Wuerttemberg Rapid Teams 2024"]
[Site "B?blingen, Germany"]
[Date "2024.04.13"]
[Round "3.21"]
[White "Schaefer, Daniel"]
[Black "Gabriel, Robert"]
[Result "0-1"]
[ECO "D35"]
[WhiteElo "1952"]
[BlackElo "2161"]
[Annotator "RC"]
[PlyCount "78"]
[EventDate "2024.04.13"]
[EventType "team-tourn"]
[SourceTitle "playchess.com"]
[Source "ChessBase"]
[SourceQuality "1"]
[TimeControl "900+5"]

1. d4 {[%emt 0:00:02]} d5 {[%emt 0:00:05]} 2. c4 {[%emt 0:00:03]} e6 {[%emt 0:00:04]} 3. Nc3 {[%emt 0:00:02]} Nf6 {[%emt 0:00:08]} 4. cxd5 {[%emt 0:00:02]} exd5 {[%emt 0:00:03]} 5. Bg5 {[%emt 0:00:01]} c6 {[%emt 0:00:18]} 6. e3 {[%emt 0:00:03]} Be7 {[%emt 0:00:12]} 7. Bd3 {[%emt 0:00:02]} Nbd7 {[%emt 0:00:10]} 8. Nge2 {[%emt 0:00:07]} h6 {[%emt 0:00:05]} 9. Bh4 {[%emt 0:00:02]} O-O {[%emt 0:00:07]} 10. O-O {[%emt 0:00:12]} Ne4 {[%emt 0:00:18]} 11. Bxe7 {[%emt 0:00:39]} Qxe7 {[%emt 0:00:05]} 12. Bxe4 {[%emt 0:00:26]} dxe4 {[%emt 0:00:04]} 13. d5 {[%emt 0:00:04]} cxd5 {[%emt 0:00:30]} 14. Qxd5 {[%emt 0:00:05]} Nf6 {[%emt 0:00:13]} 15. Qb5 {[%emt 0:00:42]} Bd7 {[%emt 0:01:17]} 16. Qb3 {[%emt 0:00:27]} Bc6 {[%emt 0:00:12]} 17. Nd4 {[%emt 0:00:14]} Rac8 {[%emt 0:00:11]} 18. Rac1 {[%emt 0:00:55]} Rfe8 {[%emt 0:00:24]} 19. Rfd1 {[%emt 0:00:37]} Qe5 {[%emt 0:00:11]} 20. Nce2 {[%emt 0:00:34]} Ng4 {[%emt 0:00:14]} 21. Ng3 {[%emt 0:00:44]} Bd5 {[%emt 0:00:24]} 22. Qa4 {[%emt 0:01:12]} Rxc1 {[%emt 0:00:42]} 23. Rxc1 {[%emt 0:00:06]} a6 {[%emt 0:00:11]} 24. h3 {[%emt 0:00:09]} b5 {[%emt 0:02:16]} 25. Qxa6 {[%emt 0:01:22]} Nxe3 {[%emt 0:00:32]} 26. Nge2 {[%emt 0:01:52]} Nxg2 {[%emt 0:00:44]} 27. Kxg2 {[%emt 0:00:22]} Qg5+ {[%emt 0:00:27]} 28. Kh2 {[%emt 0:01:26]} Qe5+ {[%emt 0:02:40]} 29. Kg1 {[%emt 0:00:23]} Qg5+ {[%emt 0:00:45]} 30. Kh2 {[%emt 0:00:05]} Qe5+ {[%emt 0:00:06]} 31. Kh1 {[%emt 0:01:14]} e3+ {[%emt 0:01:14]} 32. f3 {[%emt 0:00:11]} Qh5 {[%emt 0:01:08]} 33. Kg2 {[%emt 0:00:41]} Re5 {[%emt 0:00:17]} 34. Qc8+ {[%emt 0:01:57]} Kh7 {[%emt 0:00:06]} 35. Ng3 {[%emt 0:00:08]} Rg5 {[%emt 0:00:35]} 36. Kh2 {[%emt 0:00:22]} Qh4 {[%emt 0:00:58]} 37. Ndf5 {[%emt 0:00:23]} Qf4 {[%emt 0:00:02]} 38. Qc7 {[%emt 0:00:07]} Qxf3 {[%emt 0:00:04]} 39. Rg1 {[%emt 0:00:09]} Qf2+ {[%emt 0:00:03]} 0-1

[Event "Wuerttemberg Rapid Teams 2024"]
[Site "B?blingen, Germany"]
[Date "2024.04.13"]
[Round "3.22"]
[White "Gabriel, Josef"]
[Black "Lahouel, Kim-Luca"]
[Result "1-0"]
[ECO "A84"]
[WhiteElo "1997"]
[BlackElo "1970"]
[Annotator "RC"]
[PlyCount "29"]
[EventDate "2024.04.13"]
[EventType "team-tourn"]
[SourceTitle "playchess.com"]
[Source "ChessBase"]
[SourceQuality "1"]
[TimeControl "900+5"]

1. d4 {[%emt 0:00:02]} d5 {[%emt 0:00:01]} 2. c4 {[%emt 0:00:01]} e6 {[%emt 0:00:01]} 3. Nc3 {[%emt 0:00:03]} c6 {[%emt 0:00:01]} 4. e3 {[%emt 0:00:04]} f5 {[%emt 0:00:04]} 5. cxd5 {[%emt 0:00:08]} exd5 {[%emt 0:00:20]} 6. Bd3 {[%emt 0:00:49]} Nf6 {[%emt 0:00:06]} 7. Nge2 {[%emt 0:00:19]} Bd6 {[%emt 0:00:09]} 8. Qc2 {[%emt 0:00:22]} Ne4 {[%emt 0:00:21]} 9. g3 {[%emt 0:01:13]} O-O {[%emt 0:00:28]} 10. f3 {[%emt 0:00:36]} Ng5 {[%emt 0:01:44]} 11. Rf1 {[%emt 0:00:15]} c5 {[%emt 0:02:30]} 12. Nxd5 {[%emt 0:01:20]} cxd4 {[%emt 0:00:08]} 13. Nxd4 {[%emt 0:00:11]} Bxg3+ {[%emt 0:00:07]} 14. hxg3 {[%emt 0:00:03]} Qxd5 {[%emt 0:00:02]} 15. Bc4 {[%emt 0:00:02]} 1-0

[Event "Wuerttemberg Rapid Teams 2024"]
[Site "B?blingen, Germany"]
[Date "2024.04.13"]
[Round "3.23"]
[White "Mikeler, Marcel"]
[Black "Aksenov, Pavel"]
[Result "0-1"]
[ECO "D07"]
[WhiteElo "1945"]
[BlackElo "2045"]
[Annotator "RC"]
[PlyCount "122"]
[EventDate "2024.04.13"]
[EventType "team-tourn"]
[SourceTitle "playchess.com"]
[Source "ChessBase"]
[SourceQuality "1"]
[TimeControl "900+5"]

1. d4 {[%emt 0:00:03]} d5 {[%emt 0:00:09]} 2. c4 {[%emt 0:00:02]} Nc6 {[%emt 0:00:05]} 3. Nf3 {[%emt 0:00:32]} Bg4 {[%emt 0:00:31]} 4. e3 {[%emt 0:00:12]} Nf6 {[%emt 0:02:12]} 5. Nc3 {[%emt 0:00:11]} e6 {[%emt 0:00:20]} 6. Be2 {[%emt 0:00:29]} dxc4 {[%emt 0:00:15]} 7. Qa4 {[%emt 0:00:26]} Qd7 {[%emt 0:01:47]} 8. h3 {[%emt 0:00:48]} Bf5 {[%emt 0:00:10]} 9. Qxc4 {[%emt 0:00:03]} Na5 {[%emt 0:03:37]} 10. Ne5 {[%emt 0:00:42]} Nxc4 {[%emt 0:00:20]} 11. Nxd7 {[%emt 0:00:01]} Kxd7 {[%emt 0:00:42]} 12. Bxc4 {[%emt 0:00:02]} c6 {[%emt 0:00:29]} 13. f3 {[%emt 0:00:25]} h5 {[%emt 0:00:15]} 14. e4 {[%emt 0:00:11]} Bg6 {[%emt 0:00:07]} 15. Bg5 {[%emt 0:00:07]} Be7 {[%emt 0:00:43]} 16. h4 {[%emt 0:00:25]} b5 {[%emt 0:00:18]} 17. Bb3 {[%emt 0:00:08]} Rhe8 {[%emt 0:00:24]} 18. Kf2 {[%emt 0:00:32]} a5 {[%emt 0:00:03]} 19. a4 {[%emt 0:00:21]} b4 {[%emt 0:00:06]} 20. Ne2 {[%emt 0:00:13]} c5 {[%emt 0:00:15]} 21. dxc5 {[%emt 0:00:13]} Bxc5+ {[%emt 0:00:02]} 22. Be3 {[%emt 0:00:02]} Rac8 {[%emt 0:00:35]} 23. Rac1 {[%emt 0:00:24]} Bxe3+ {[%emt 0:00:33]} 24. Kxe3 {[%emt 0:00:02]} e5 {[%emt 0:00:13]} 25. Bc4 {[%emt 0:00:29]} Ke7 {[%emt 0:00:03]} 26. Rhd1 {[%emt 0:00:10]} Kf8 {[%emt 0:00:39]} 27. Rd6 {[%emt 0:00:41]} Red8 {[%emt 0:00:15]} 28. Ra6 {[%emt 0:00:42]} Ra8 {[%emt 0:00:05]} 29. Rxa8 {[%emt 0:00:00]} Rxa8 {[%emt 0:00:01]} 30. Bb5 {[%emt 0:00:01]} Ra7 {[%emt 0:00:09]} 31. Rc5 {[%emt 0:00:00]} Ke7 {[%emt 0:00:07]} 32. Rxe5+ {[%emt 0:01:00]} Kd6 {[%emt 0:00:01]} 33. Rg5 {[%emt 0:00:01]} Nh7 {[%emt 0:00:09]} 34. Rd5+ {[%emt 0:00:11]} Ke7 {[%emt 0:00:13]} 35. Nf4 {[%emt 0:00:20]} Nf8 {[%emt 0:00:15]} 36. Nxg6+ {[%emt 0:00:27]} Nxg6 {[%emt 0:00:00]} 37. Rxh5 {[%emt 0:00:09]} f6 {[%emt 0:00:20]} 38. f4 {[%emt 0:00:06]} Rc7 {[%emt 0:00:12]} 39. Bd3 {[%emt 0:00:02]} Ra7 {[%emt 0:00:23]} 40. g3 {[%emt 0:00:03]} Nf8 {[%emt 0:00:10]} 41. Bc4 {[%emt 0:00:16]} Kd6 {[%emt 0:00:26]} 42. Rd5+ {[%emt 0:00:14]} Kc6 {[%emt 0:00:09]} 43. Rd8 {[%emt 0:00:11]} Nd7 {[%emt 0:00:08]} 44. Bb5+ {[%emt 0:00:02]} Kd6 {[%emt 0:00:05]} 45. Bxd7 {[%emt 0:00:05]} Rxd7 {[%emt 0:00:02]} 46. e5+ {[%emt 0:00:06]} Ke7 {[%emt 0:00:10]} 47. exf6+ {[%emt 0:00:15]} Kxd8 {[%emt 0:00:03]} 48. fxg7 {[%emt 0:00:15]} Rxg7 {[%emt 0:00:01]} 49. Kf3 {[%emt 0:00:01]} Ke7 {[%emt 0:00:02]} 50. g4 {[%emt 0:00:03]} Kf6 {[%emt 0:00:01]} 51. h5 {[%emt 0:01:44]} Rc7 {[%emt 0:00:08]} 52. Ke4 {[%emt 0:01:59]} Rc4+ {[%emt 0:00:09]} 53. Ke3 {[%emt 0:00:02]} Rc2 {[%emt 0:00:05]} 54. Ke4 {[%emt 0:00:03]} Re2+ {[%emt 0:00:20]} 55. Kf3 {[%emt 0:01:18]} Rxb2 {[%emt 0:00:00]} 56. g5+ {[%emt 0:00:07]} Kf5 {[%emt 0:00:00]} 57. Kg3 {[%emt 0:00:52]} Rb3+ {[%emt 0:00:01]} 58. Kh4 {[%emt 0:00:01]} Kxf4 {[%emt 0:00:01]} 59. g6 {[%emt 0:00:21]} Rb1 {[%emt 0:00:01]} 60. Kh3 {[%emt 0:00:08]} Rh1+ {[%emt 0:00:02]} 61. Kg2 {[%emt 0:00:05]} Rxh5 {[%emt 0:00:02]} 0-1